Cogmind - Beta 10.2 @@@ ROGUE MODE // 2022.01.07 @ 18:59:40 Player: Jezoensis Result: Self-destructed Performance ------------- Evolutions (2) 1000 Regions Visited (5) 1000 Robots Destroyed (36) 180 Value Destroyed (831) 831 Prototype IDs (23) 460 Alien Tech Used (0) 0 Bonus (315) 315 TOTAL SCORE: 3786 Bonus ------- High Alert Combat Kills 15 Aligned with FarCom 300 Cogmind --------- Core Integrity 304/550 Matter 7/300 Energy 100/100 System Corruption 0% Temperature Cool (0) Movement Core (450) Ox8 Location -8/Materials Parts ------- > --- POWER (1) -------- (None) > --- PROPULSION (3) --- (None) > --- UTILITY (4) ------ Medium Storage Unit Large Storage Unit > --- WEAPON (3) ------- Mini Grenade Launcher > --- INVENTORY (14) --- Improved Aluminum Leg Improved Aluminum Leg Improved Aluminum Leg Improved Aluminum Leg Large Storage Unit Guided Plasma Cannon Mining Laser Peak State ------------ > --- POWER ------------ Ion Engine > --- PROPULSION ------- Light Treads Light Treads Light Treads > --- UTILITY ---------- Medium Storage Unit Large Storage Unit Improved Terrain Scanner > --- WEAPON ----------- EM Pulse Gun Assault Rifle Mining Laser > --- INVENTORY -------- Improved Aluminum Leg Improved Aluminum Leg Improved Aluminum Leg Improved Aluminum Leg Large Storage Unit High-capacity Matter Pod EM Pulse Gun Guided Plasma Cannon Assault Rifle Makeshift Shrapnel Gun Mini Grenade Launcher [Rating: 13] Favorites ----------- Power Ion Engine Engine Ion Engine Propulsion Light Treads Treads Light Treads Utility Large Storage Unit Device Improved Terrain Scanner Storage Large Storage Unit Weapon Assault Rifle Energy Gun EM Pulse Gun Ballistic Gun Assault Rifle Launcher Mini Grenade Launcher Special Weapon Mining Laser Build | -11 -10 -10 -10 -9 -8 ------- Run | Scr Mat Min Exi Min Mat Slots Evolved 4 | . . . . . 4 Power . | . . . . . . Propulsion 1 | . . . . . 1 Utility 2 | . . . . . 2 Weapon 1 | . . . . . 1 Parts Attached 25 | 7 8 1 . . 9 Power 1 | 1 . . . . . Engine 1 | 1 . . . . . Core . | . . . . . . Reactor . | . . . . . . Propulsion 3 | 2 . . . . 1 Treads 3 | 2 . . . . 1 Leg . | . . . . . . Wheel . | . . . . . . Hover . | . . . . . . Flight . | . . . . . . Utility 5 | 2 2 . . . 1 Device 2 | 1 . . . . 1 Storage 3 | 1 2 . . . . Processor . | . . . . . . Hackware . | . . . . . . Protection . | . . . . . . Artifact . | . . . . . . Weapon 16 | 2 6 1 . . 7 Energy Gun 6 | 1 2 1 . . 2 Energy Cannon . | . . . . . . Ballistic Gun 3 | 1 . . . . 2 Ballistic Cannon . | . . . . . . Launcher 5 | . 3 . . . 2 Special Weapon 2 | . 1 . . . 1 Impact Weapon . | . . . . . . Slashing Weapon . | . . . . . . Piercing Weapon . | . . . . . . Special Melee Weapon . | . . . . . . Unidentified Prototypes . | . . . . . . Parts Lost 10 | . . . . . 10 Power 1 | . . . . . 1 Propulsion 3 | . . . . . 3 Utility 1 | . . . . . 1 Weapon 5 | . . . . . 5 Highest Loss Streak 10 | . . . . . 10 Average Slot Usage (%) 96 | . 100 100 100 100 72 Engine 13 | . 14 14 14 14 7 Treads 27 | . 28 28 28 28 21 Device 5 | . 11 . . . 6 Storage 21 | . 16 28 28 28 18 Energy Gun 11 | . 12 8 14 14 7 Ballistic Gun 13 | . 14 14 14 14 9 Launcher 1 | . . 5 . . 1 Naked Turns . | . . . . . . Heaviest Build 35 | 14 33 33 33 33 35 Greatest Support 60 | 40 40 40 40 40 60 Greatest Overweight (x) . | . . . . . . Average Overweight (x) . | . . . . . . Largest Inventory Capacity 14 | 6 14 14 14 14 14 Average Capacity 11 | 5 8 14 14 14 14 Most Carried 14 | 4 14 14 14 14 13 Average Carried 10 | 2 8 14 13 13 10 Final Capacity 14 | 6 14 14 14 14 14 Final Carried 14 | 3 14 14 14 14 7 Class Distribution -------------------- 96% | Mutant 3% | Skirmisher Dominant Class ---------------- Mutant | -10/Materials Mutant | -10/Mines Mutant | -10/Exiles Mutant | -9/Mines Mutant | -8/Materials Resources | -11 -10 -10 -10 -9 -8 ----------- Run | Scr Mat Min Exi Min Mat Matter Collected 619 | 309 307 3 . . . Remotely . | . . . . . . Salvage Created 1070 | 174 357 3 . . 536 Parts 69 | 11 26 3 . . 29 Haulers Intercepted 2 | . 2 . . . . Recyclers Shooed 2 | . . . . . 2 Parts Field Recycled . | . . . . . . Retrieved Matter . | . . . . . . Parts Self-Destructed . | . . . . . . Prevented . | . . . . . . Kills | -11 -10 -10 -10 -9 -8 ------- Run | Scr Mat Min Exi Min Mat Combat Hostiles Destroyed 21 | . 7 . . . 14 Guns 5 | . 2 . . . 3 AOE 16 | . 5 . . . 11 Classes Destroyed 10 | 3 4 . . . 3 Worker 2 | 1 . . . . 1 Builder 3 | . 1 1 . . 1 Tunneler 3 | 3 . . . . . Hauler 2 | . 2 . . . . Recycler 2 | 1 . . . . 1 Watcher 3 | . 1 . . . 2 Swarmer 6 | . . . . . 6 Grunt 13 | . 7 . . . 6 Duelist 1 | . . . . . 1 Sentry 1 | . . . . . 1 Best Kill Streak 18 | 3 3 1 . . 18 Combat Bots Only 14 | . 3 . . . 14 Max Kills in Single Turn 3 | 1 2 1 . . 3 Gunslinging . | . . . . . . Exploded 2 | . 2 . . . 2 Melee . | . . . . . . Uniques/NPCs Destroyed . | . . . . . . Combat | -11 -10 -10 -10 -9 -8 -------- Run | Scr Mat Min Exi Min Mat Damage Taken 1381 | . 168 30 . . 1183 Core 280 | . 34 . . . 246 Absorbed by Shields . | . . . . . . Core Remaining (%) 93 | 100 . . . 86 . Volleys Fired 56 | 13 16 1 . . 26 Largest 3 | 2 2 2 . . 3 Hottest 100 | 60 100 50 . . 100 Shots Fired 96 | 26 27 2 . . 41 Gun 75 | 26 22 1 . . 26 Cannon . | . . . . . . Launcher 17 | . 4 1 . . 12 Special 4 | . 1 . . . 3 Kinetic 44 | 13 11 1 . . 19 Thermal 4 | . 1 . . . 3 Explosive 17 | . 4 1 . . 12 Electromagnetic 31 | 13 11 . . . 7 Robot Hit Streak 19 | 8 4 5 . . 19 Robot Miss Streak 2 | 2 2 . . . 2 Penetration Max . | . . . . . . Secondary Targets 1 | . 1 . . . . Max Gunslinging Chain 1 | . 1 . . . . Shots Hit Robots 60 | 17 12 2 . . 29 Core Hits 55 | 5 14 1 . . 35 Critical Hits . | . . . . . . Critical Kills . | . . . . . . Critical Parts Destroyed . | . . . . . . Melee Attacks . | . . . . . . Impact . | . . . . . . Slashing . | . . . . . . Piercing . | . . . . . . Sneak Attacks . | . . . . . . Combat Hostiles . | . . . . . . Follow-up Attacks . | . . . . . . Damage Inflicted 2499 | 241 533 41 . . 1684 Guns 729 | 221 167 14 . . 327 Cannons . | . . . . . . Explosions 1767 | 20 363 27 . . 1357 Melee . | . . . . . . Ramming 3 | . 3 . . . . Kinetic 371 | 72 48 14 . . 237 Thermal 158 | 20 . . . . 138 Explosive 1609 | . 363 27 . . 1219 Electromagnetic 358 | 149 119 . . . 90 Impact . | . . . . . . Slashing . | . . . . . . Piercing . | . . . . . . Highest Corruption . | . . . . . . Average Corruption . | . . . . . . Corruption Purged . | . . . . . . Overload Shots . | . . . . . . Overflow Damage 121 | . 5 . . . 116 Projectiles . | . . . . . . Explosions 121 | . 5 . . . 116 Melee . | . . . . . . Knockbacks . | . . . . . . Impact . | . . . . . . Kinetic . | . . . . . . Secondary . | . . . . . . Self-Inflicted Damage 229 | . . 31 . . 198 Shots 6 | . . 1 . . 5 Rammed 3 | . 3 . . . . Targets Rammed 3 | . 3 . . . . Kicked . | . . . . . . Crushed . | . . . . . . Highest Temperature 62 | . 51 . . . 62 Average Temperature 25 | . 27 . . . 24 Received Heat Transfer 372 | . 93 . . . 279 Siege Activations . | . . . . . . Robots Corrupted . | . . . . . . Combat Hostiles . | . . . . . . Parts Fried 1 | 1 . . . . . Impact Corruptions . | . . . . . . Robots Melted . | . . . . . . Combat Hostiles . | . . . . . . Parts Melted 1 | . . . . . 1 Heat Transferred 200 | 50 . . . . 150 Parts Sabotaged . | . . . . . . Parts Stolen . | . . . . . . Parts Stripped . | . . . . . . Power Chain Reactions 3 | 1 . . . . 2 Missiles Intercepted . | . . . . . . Alert | -11 -10 -10 -10 -9 -8 ------- Run | Scr Mat Min Exi Min Mat Peak Influence 478 | 25 203 25 . . 478 Initial 20 | . 16 20 . . . Average 57 | 10 85 23 . . 70 Maximum Alert Level 2 | . 1 . . . 2 Low Security (%) 97 | 100 97 100 . 100 89 Level 1 2 | . 2 . . . 7 Level 2 . | . . . . . 3 Level 3 . | . . . . . . Level 4 . | . . . . . . Level 5 . | . . . . . . High Security . | . . . . . . Max Security . | . . . . . . Squads Dispatched 2 | . 1 . . . 1 Investigation . | . . . . . . Extermination . | . . . . . . Reinforcement 1 | . 1 . . . . Assault . | . . . . . . Garrison 1 | . . . . . 1 Intercept . | . . . . . . Construction Impeded . | . . . . . . Haulers Reinforced . | . . . . . . Stealth | -11 -10 -10 -10 -9 -8 --------- Run | Scr Mat Min Exi Min Mat Distress Signals 3 | . . . . . 3 Communications Jammed . | . . . . . . Distress Signals . | . . . . . . Times Spotted 35 | . 12 . . . 23 Peak Tracking Total 10 | . 3 . . . 10 Tactical Retreats 3 | . . . . . 3 Traps | -11 -10 -10 -10 -9 -8 ------- Run | Scr Mat Min Exi Min Mat Traps Triggered . | . . . . . . Indirectly . | . . . . . . Trap Hack Attempts . | . . . . . . Triggered . | . . . . . . Disarmed . | . . . . . . Reprogrammed . | . . . . . . Reused . | . . . . . . Traps Extracted . | . . . . . . Installed . | . . . . . . Triggered . | . . . . . . Machines | -11 -10 -10 -10 -9 -8 ---------- Run | Scr Mat Min Exi Min Mat Machines Disabled 1 | . . . . . 1 Max in Single Turn 1 | . . . . . 1 Machines Sabotaged . | . . . . . . Garrisons Compromised . | . . . . . . Overloaded Fab Kills . | . . . . . . Fab Network Shutdowns . | . . . . . . Hacking | -11 -10 -10 -10 -9 -8 --------- Run | Scr Mat Min Exi Min Mat Machines Accessed 7 | . 6 . 1 . . Terminals 5 | . 5 . . . . Fabricators . | . . . . . . Repair Stations . | . . . . . . Recycling Units 1 | . 1 . . . . Scanalyzers . | . . . . . . Garrison Access . | . . . . . . Total Hacks 20 | . 19 . 1 . . Successful 12 | . 11 . 1 . . Failed 7 | . 7 . . . . Catastrophic 2 | . 2 . . . . Database Lockouts 1 | . 1 . . . . Manual 19 | . 18 . 1 . . Terminals 18 | . 18 . . . . Fabricators . | . . . . . . Repair Stations . | . . . . . . Recycling Units 1 | . 1 . . . . Scanalyzers . | . . . . . . Garrison Access . | . . . . . . Terminal Hacks 8 | . 7 . 1 . . Part Schematic 1 | . 1 . . . . Robot Analysis 3 | . 3 . . . . Branch Access Points 1 | . 1 . . . . Terminal Index 1 | . 1 . . . . Locate Traps 1 | . 1 . . . . EX-Prototype ID Bank 1 | . . . 1 . . Fabricator Hacks . | . . . . . . Repair Station Hacks . | . . . . . . Recycling Unit Hacks . | . . . . . . Scanalyzer . | . . . . . . Garrison Access Hacks . | . . . . . . Unauthorized Hacks 4 | . 4 . . . . Terminals 3 | . 3 . . . . Track 1 | . 1 . . . . Botnet 2 | . 2 . . . . Fabricators . | . . . . . . Repair Stations . | . . . . . . Recycling Units 1 | . 1 . . . . Recyclers 1 | . 1 . . . . Scanalyzers . | . . . . . . Garrison Access . | . . . . . . Data Cores Recovered . | . . . . . . Used . | . . . . . . Hacking Detections 6 | . 6 . . . . Full Trace Events . | . . . . . . Feedback Events . | . . . . . . Feedback Blocked . | . . . . . . Robot Schematics Acquired . | . . . . . . Robots Built . | . . . . . . Matter . | . . . . . . Time . | . . . . . . Total Robot Build Rating . | . . . . . . Part Schematics Acquired 1 | . 1 . . . . Parts Built . | . . . . . . Matter . | . . . . . . Time . | . . . . . . Total Part Build Rating . | . . . . . . Parts Repaired . | . . . . . . Time . | . . . . . . Parts Recycled . | . . . . . . Recycled Matter . | . . . . . . Retrieved Matter . | . . . . . . Retrieved Components . | . . . . . . Parts Scanalyzed . | . . . . . . Part Schematics Acquired . | . . . . . . Parts Damaged . | . . . . . . Bothacking | -11 -10 -10 -10 -9 -8 ------------ Run | Scr Mat Min Exi Min Mat Used RIF Installer . | . . . . . . Robots Hacked . | . . . . . . Non-combat . | . . . . . . Combat . | . . . . . . Robot Hacks Applied . | . . . . . . Relay Couplers Released . | . . . . . . Robots Rewired . | . . . . . . Allies Hacked . | . . . . . . Hacks Repelled . | . . . . . . Allies | -11 -10 -10 -10 -9 -8 -------- Run | Scr Mat Min Exi Min Mat Total Allies . | . . . . . . Largest Group . | . . . . . . Highest-Rated Group . | . . . . . . Highest-Rated Ally . | . . . . . . Total Orders . | . . . . . . Ally Attacks . | . . . . . . Total Damage . | . . . . . . Kills . | . . . . . . Allies Corrupted . | . . . . . . Allies Melted . | . . . . . . Intel | -11 -10 -10 -10 -9 -8 ------- Run | Scr Mat Min Exi Min Mat Robot Analysis Total 3 | . 3 . . . . Derelict Logs Recovered 2 | . . 2 . . . Drone Launches . | . . . . . . Drone Recoveries . | . . . . . . Exploration | -11 -10 -10 -10 -9 -8 ------------- Run | Scr Mat Min Exi Min Mat Turns Passed 1462 | 141 546 183 330 85 177 Spaces Moved 786 | 63 295 112 206 53 57 Core 12 | 12 . . . . . Treads 774 | 51 295 112 206 53 57 Legs . | . . . . . . Wheels . | . . . . . . Hover . | . . . . . . Flight . | . . . . . . Fastest Speed 50 | 50 160 160 160 160 160 Average Speed 158 | 139 160 160 160 160 160 Slowest Speed 160 | 160 160 160 160 160 160 Overloaded Moves . | . . . . . . Propulsion Burnouts . | . . . . . . Robots Hopped . | . . . . . . Cave-ins Triggered . | . . . . . . Exploration Rate (%) 32 | 5 54 43 60 23 11 Regions Visited 5 Branch Regions 3 Pre-discovered Areas . | . . . . . . Known Exits Taken 1 | . 1 . . . . Unknown Exits Taken 4 | 1 . 1 1 1 . Scrap Searched . | . . . . . . Spaces Dug 4 | . 1 . . . 3 Terrain Destroyed 105 | . 31 10 . . 64 Melee . | . . . . . . Projectile 4 | . 1 . . . 3 AOE 101 | . 30 10 . . 61 Terrain Rammed . | . . . . . . Walls Destroyed . | . . . . . . Machines Disabled . | . . . . . . Actions | -11 -10 -10 -10 -9 -8 --------- Run | Scr Mat Min Exi Min Mat Total 897 | 88 337 113 207 54 98 Wait 5 | . . . . . 5 Move 781 | 62 294 111 205 52 57 Hop . | . . . . . . Pick Up 21 | 6 13 . 1 1 . Fast Attach 4 | 4 . . . . . Attach 9 | 3 . . . . 6 Detach . | . . . . . . Swap 12 | . 8 1 . . 3 Drop 6 | . 3 . 1 1 1 Fire 56 | 13 16 1 . . 26 Melee . | . . . . . . Ram . | . . . . . . Kick . | . . . . . . Crush 3 | . 3 . . . . Escape Stasis . | . . . . . . Rewire . | . . . . . . Trap . | . . . . . . Miscellaneous . | . . . . . . Route ------- -11/Scrapyard -10/Materials (discovered 3 exits: [*Mat x2] / *Min) -10/Mines -10/Exiles -9/Mines -8/Materials History --------- Turn | Location | Event 22 | -11/Scrapyard | Discovered new exit (range 16) 142 | -11/Scrapyard | Entered Materials 318 | -10/Materials | Build established: Mutant 396 | -10/Materials | Discovered new exit (range 12) 466 | -10/Materials | Identified exit to Mines 466 | -10/Materials | Central database locked down 667 | -10/Materials | Discovered new exit (range 16) 688 | -10/Materials | Entered Mines 768 | -10/Mines | Learned Materials trap positions 864 | -10/Mines | Deemed a non-threat by the Exiles lab entrance 864 | -10/Mines | Discovered new exit (range 5) 871 | -10/Mines | Entered Exiles 911 | -10/Exiles | Met 8R-AWN 939 | -10/Exiles | Met EX-HEX 982 | -10/Exiles | Met EX-BIN 999 | -10/Exiles | Aligned with FarCom system 1001 | -10/Exiles | Given EX-Vault access code 1038 | -10/Exiles | Opened EX-Vault 1053 | -10/Exiles | Found Gui. Plasma Cannon 1084 | -10/Exiles | Warned to stay clear of 0b10 Research branches 1132 | -10/Exiles | Met EX-DEC 1188 | -10/Exiles | Discovered new exit (range 10) 1201 | -10/Exiles | Left Exiles lab with Gui. Plasma Cannon 1201 | -10/Exiles | Entered Mines 1216 | -9/Mines | A weapon hastily lodged in a ceiling crevice suddenly fell to the ground 1225 | -9/Mines | Assembled infested the area 1230 | -9/Mines | Assisted by a Guerilla fighting off Assembled 1278 | -9/Mines | Discovered new exit (range 5) 1286 | -9/Mines | Entered Materials 1286 | -8/Materials | Evolved 4 slots: Propulsion x1, Utility x2, Weapon x1 1287 | -8/Materials | Loaded intel: 18 trap records 1413 | -8/Materials | Garrison activated, responded to threat 1463 | -8/Materials | Self-destructed Last Messages --------------- 01442_ Destroyed Flight Unit. 01443_ The unstable cave ceiling collapses. 01444_ S-10 Pest destroyed. 01446_ W-25 Informer sends out distress signal. 01446_ Destroyed Lgt. Ion Engine. 01446_ Destroyed Lgt. Assault Rifle. 01448_ S-10 Pest destroyed. 01448_ Destroyed Lgt. Ion Engine. 01448_ W-25 Informer destroyed. 01448_ G-47 Trooper destroyed. 01449_ W-25 Informer sends out distress signal. 01450_ G-47 Trooper destroyed. 01450_ R-06 Scavenger destroyed. 01450_ K-01 Serf destroyed. 01452_ Dropped Hcp. Matter Pod. 01453_ Destroyed Particle Gun. 01455_ W-25 Informer destroyed. 01455_ S-10 Pest destroyed. 01461_ G-47 Trooper destroyed. 01461_ Destroyed Terrain Scanner. Map ----- +----------------------------------------------------+ | ???????#?????????????????????????????????????????? | | ?????????????????????????????????????????????????? | | ?????########????????????????????????????????????? | | ?????# #????????????????????????????????????? | | ???#?# #????####????????????????????????????? | | ?????# """ #??? ????????????????????????????? | | ?????# """ #??? """ #??????????????????????????? | | ??#??# """ #?? """ #??????????????????????????? | | ??????? ???! """ #??????????????????????????? | | ??#??####+#### #??????????????????????????? | | ?????# # "" #??????????????????????????? | | ?????# + G" #??##??????????????????????? | | ?????# # "" #??????????? ??????????????? | | ?????##### # #?????#????????????????????? | | #????????# ##########??????????? ?^????????????? | | ?????????# # #?#??????#???^?????????????? | | ?#?#?????# + #??#?####????^^^???????????? | | ?????????# # #?#?# ?????^???????????? | | ?????????# # #???? """ #? ?? ??????????? | | ?????????# # #???? """ #?? ??????????? | | ?????????# # ##### """ # ??????????? | | ?????????# # ## ?????????? | | ? ???????# # ^????????? | | ?????????# # % ????????? | | ? ??????#" ##### * /%!|[ u ""?????????? | | ???#????#"%! # !@%!|% = ""??^??????? | | ??#?#???#"= # %= |[= *% ""?????????? | | ????????!# #! g [= ???g????? | | ???????!!# # ! !=] ^?????????? | | ?????? # [ *%[! #" ""???^?????? | | #???? ?# ## # ####[####?? "??????????? | | ???? ? g= ####????##??????????????????? | | ??? ?? = ??????????????? ????????????? | | ?? ? ? % ?????????????????????????????? | | ??###???## # ??????????????????????????????? | | ?????????# #####???????????#??#????????????????? | | ?????????# ??#?#??????????????#????????????????? | | ?????????? ?#?????????#??#?????????????????????? | | ?????????? ???????????? ???????????????????????? | | ?????????????????????????? ?????????Y????????????? | | ?????????????????????????????s?s??s??????????????? | | ?????????????????????????????????????????????????? | | ?????????????????????????????????????????????????? | | ?????????????????????????????????????????????????? | | ?????????????????????????????????????????????????? | | ?????????????????????????????????????????????????? | | ?????????????????????????????????????????????????? | | ?????????????????????????????????????????????????? | | ?????????????????????????????????????????????????? | | ?????????????????????????????????????????????????? | +----------------------------------------------------+ Best States ------------- Heat Dissipation 31 Energy Generation 10 Energy Capacity 250 Matter Stores 300 Matter Capacity 300 Sight Range 16 Terrain Scan Range 16 Terrain Scan Density 10 Evasion (%) 50 Recoil Reduction 3 Item Schematics ----------------- Lrg. Storage Unit | -10/Materials | Hacked Robot Schematics ------------------ None Fabricated ------------ Nothing Alien Tech Used ----------------- None Achievements -------------- None Challenges ------------ None Game ------ Seed RestorationEnergyNukerbomber Manual? 0 Play Time 00:18:53 Cumulative 463.0 hours Start 2022.01.07 @ 18:41:51 End 2022.01.07 @ 18:59:40 Sessions 1 Manual Loads 0 Difficulty Rogue Special Mode None Game No. 223 Rogue 95 Adventurer 126 Explorer 2 Win Type - Total 39 Types 32/3/2/0/1/0/0/0/1 Lore% 64 Gallery% 84 Achievement% 65 Wizard Run 0 Options --------- ASCII 0 Keyboard 1 Movement Numpad Keybinds 0 Fullscreen 1 Font 36/TerminusFine Map View 76x50 Tactical HUD 1 Map Filters NONE Filters NONE Steam 1 RUN: 62f2367c-ead1-4e70-ad8d-7e621d803e8c